Cogmind - Beta 13 @@@ ROGUE MODE // 2024.04.13 @ 10:04:20 Player: MO-55 Result: Destroyed by LN-XBE(R) with Subdweller Beam Cannon Performance ------------- Evolutions (0) 0 Regions Visited (2) 400 Robots Destroyed (22) 110 Value Destroyed (580) 580 Prototype IDs (2) 40 Alien Tech Used (0) 0 Bonus (0) 0 TOTAL SCORE: 1130 Bonus ------- None Cogmind --------- Core Integrity 0/250 Matter 291/300 Energy 249/250 System Corruption 0% Temperature Warning (306) Movement Treading (160) Location -10/Subcaves Parts ------- > --- POWER (1) -------- Ion Engine > --- PROPULSION (2) --- Light Treads Light Treads > --- UTILITY (2) ------ (None) > --- WEAPON (2) ------- Subdweller Beam Cannon Subdweller Machine Gun > --- INVENTORY (5) ---- Subdweller Monowheel Makeshift Laser Subdweller Machine Gun Battle Cannon Grenade Launcher Peak State ------------ > --- POWER ------------ Light Ion Engine > --- PROPULSION ------- Wheel Subdweller Monowheel > --- UTILITY ---------- Huge Storage Unit Seismic Detector > --- WEAPON ----------- Subdweller Machine Gun Battle Cannon > --- INVENTORY -------- Ion Engine Light Ion Engine Light Treads Light Treads Aluminum Leg Aluminum Leg Aluminum Leg Aluminum Leg Heat Sink Sensor Array Signal Interpreter Makeshift Light Armor Plating Makeshift Light Armor Plating Makeshift Light Armor Plating Scrap Shield Medium Laser Makeshift Laser Makeshift Laser Battle Rifle Barrage Gun Grenade Launcher Grenade Launcher Mining Laser [Rating: 14] Favorites ----------- Power Ion Engine Engine Ion Engine Propulsion Wheel Treads Light Treads Leg Aluminum Leg Wheel Wheel Utility Scrap Shield Device Seismic Detector Storage Huge Storage Unit Protection Scrap Shield Weapon Medium Laser Energy Gun Medium Laser Energy Cannon Subdweller Beam Cannon Ballistic Gun Subdweller Machine Gun Ballistic Cannon Battle Cannon Special Weapon Mining Laser Build | -11 -10 -10 ------- Run | Yrd Mat Sub Slots Evolved . | . . . Power . | . . . Propulsion . | . . . Utility . | . . . Weapon . | . . . Parts Attached 41 | 6 8 27 Power 5 | 1 2 2 Engine 5 | 1 2 2 Core . | . . . Reactor . | . . . Propulsion 12 | 2 2 8 Treads 3 | . . 3 Leg 3 | 2 . 1 Wheel 6 | . 2 4 Hover . | . . . Flight . | . . . Utility 8 | 1 2 5 Device 3 | . . 3 Storage 3 | 1 2 . Processor . | . . . Hackware . | . . . Protection 2 | . . 2 Artifact . | . . . Weapon 16 | 2 2 12 Energy Gun 8 | 2 2 4 Energy Cannon 1 | . . 1 Ballistic Gun 4 | . . 4 Ballistic Cannon 1 | . . 1 Launcher . | . . . Special Weapon 2 | . . 2 Impact Weapon . | . . . Slashing Weapon . | . . . Piercing Weapon . | . . . Special Melee Weapon . | . . . Unidentified Prototypes . | . . . Parts Lost 4 | . . 4 Power . | . . . Propulsion 3 | . . 3 Utility 1 | . . 1 Weapon . | . . . Highest Loss Streak 1 | . . 1 To Critical Strikes . | . . . Average Slot Usage (%) 92 | . 99 90 Engine 14 | . 14 14 Treads 11 | . . 16 Leg 2 | . 1 2 Wheel 13 | . 26 8 Device 3 | . . 5 Storage 11 | . 27 5 Protection 6 | . . 8 Energy Gun 14 | . 28 9 Energy Cannon 2 | . . 3 Ballistic Gun 6 | . . 9 Ballistic Cannon 3 | . . 5 Naked Turns . | . . . Heaviest Build 129 | 11 129 93 Greatest Support 40 | 20 20 40 Greatest Overweight (x) 9 | . 6 9 Average Overweight (x) 2 | . 3 2 Largest Inventory Capacity 25 | 8 25 25 Average Capacity 15 | 7 21 13 Most Carried 25 | 8 19 25 Average Carried 10 | 5 13 10 Final Capacity 25 | 8 25 5 Final Carried 19 | 8 19 5 Class Distribution -------------------- 45% | Mutant 19% | Scavenger-Mutant 18% | Derelict-Mutant 15% | Subdweller-Mutant Dominant Class ---------------- Mutant | -10/Materials Scavenger-Mutant | -10/Subcaves Resources | -11 -10 -10 ----------- Run | Yrd Mat Sub Matter Collected 790 | 260 80 450 Remotely . | . . . Salvage Created 555 | 44 244 267 Parts 31 | 4 17 10 Haulers Intercepted 1 | . 1 . Recyclers Shooed . | . . . Parts Field Recycled . | . . . Retrieved Matter . | . . . Parts Self-Destructed 8 | . . 8 Prevented . | . . . Kills | -11 -10 -10 ------- Run | Yrd Mat Sub Combat Hostiles Destroyed 17 | . 7 10 Guns 14 | . 7 7 Cannons 3 | . . 3 Classes Destroyed 8 | 1 5 2 Worker 1 | . 1 . Tunneler 2 | 2 . . Hauler 1 | . 1 . Watcher 1 | . 1 . Swarmer 4 | . 4 . Grunt 3 | . 3 . Sentry 1 | . . 1 Subdweller 9 | . . 9 Best Kill Streak 4 | 1 4 2 Combat Bots Only 3 | . 3 2 Max Kills in Single Turn 2 | 1 2 1 Gunslinging 1 | . 1 . Exploded . | . . . Melee . | . . . Uniques/NPCs Destroyed . | . . . Combat | -11 -10 -10 -------- Run | Yrd Mat Sub Hostile Shots Fired 92 | . 24 68 Missed 20 | . 5 15 Damage Taken 1519 | . 160 1359 Core 274 | . 26 248 Absorbed by Shields . | . . . Core Remaining (%) 100 | 100 . . Volleys Fired 90 | 10 23 57 Largest 2 | 2 2 2 Hottest 125 | 90 100 125 Shots Fired 159 | 20 46 93 Gun 120 | 20 46 54 Cannon 35 | . . 35 Launcher . | . . . Special 4 | . . 4 Kinetic 58 | . . 58 Thermal 101 | 20 46 35 Explosive . | . . . Electromagnetic . | . . . Robot Hit Streak 27 | 3 7 27 Robot Miss Streak 4 | 2 4 1 Penetration Max . | . . . Secondary Targets 1 | . 1 . Max Gunslinging Chain 1 | . 1 . Shots Hit Robots 100 | 10 26 64 Core Hits 33 | 2 14 17 Critical Kills . | . . . Critical Parts Destroyed . | . . . Critical Strikes 6 | . 3 3 Burn 5 | . 3 2 Destroy 1 | . . 1 Melee Attacks . | . . . Impact . | . . . Slashing . | . . . Piercing . | . . . Sneak Attacks . | . . . Combat Hostiles . | . . . Follow-up Attacks . | . . . Damage Inflicted 1570 | 118 325 1127 Guns 1131 | 118 325 688 Cannons 415 | . . 415 Explosions . | . . . Melee . | . . . Ramming . | . . . Kinetic 710 | . . 710 Thermal 860 | 118 325 417 Explosive . | . . . Electromagnetic . | . . . Impact . | . . . Slashing . | . . . Piercing . | . . . Highest Corruption . | . . . Average Corruption . | . . . Corruption Purged . | . . . Corruption Blocked . | . . . Overload Shots . | . . . Overflow Damage . | . . . Projectiles . | . . . Explosions . | . . . Melee . | . . . Knockbacks 3 | . . 3 Impact . | . . . Kinetic 2 | . . 2 Secondary 1 | . . 1 Self-Inflicted Damage . | . . . Shots . | . . . Rammed . | . . . Targets Rammed . | . . . Kicked . | . . . Crushed . | . . . Highest Temperature 457 | 90 180 457 Average Temperature 90 | 37 67 184 Received Heat Transfer 1183 | . 48 1135 Effects 2 | . . 2 Energy Bleed 1 | . . 1 Interference 1 | . . 1 Siege Activations . | . . . Robots Corrupted . | . . . Combat Hostiles . | . . . Parts Fried . | . . . Impact Corruptions . | . . . Robots Melted . | . . . Combat Hostiles . | . . . Parts Melted 7 | . 5 2 Heat Transferred 2422 | 310 1136 976 Parts Sabotaged . | . . . Parts Stolen . | . . . Parts Stripped . | . . . Power Chain Reactions . | . . . Alert | -11 -10 -10 ------- Run | Yrd Mat Sub Peak Influence 213 | 10 213 . Initial 6 | . 6 . Average 85 | 3 101 . Maximum Alert Level 1 | . 1 . Low Security (%) 88 | 100 86 . Level 1 11 | . 13 . Level 2 . | . . . Level 3 . | . . . Level 4 . | . . . Level 5 . | . . . High Security . | . . . Max Security . | . . . Squads Dispatched 2 | . 2 . Investigation . | . . . Extermination . | . . . Reinforcement 2 | . 2 . Assault . | . . . Garrison . | . . . Intercept . | . . . Searches Triggered . | . . . Construction Impeded . | . . . Haulers Reinforced . | . . . Active Scanning Responses . | . . . Cargo Convoy Interrupts . | . . . Stealth | -11 -10 -10 --------- Run | Yrd Mat Sub Distress Signals 1 | . 1 . Communications Jammed . | . . . Distress Signals . | . . . Times Spotted 27 | . 15 12 Peak Tracking Total 4 | . 4 2 Tactical Retreats 1 | . 1 . Traps | -11 -10 -10 ------- Run | Yrd Mat Sub Traps Triggered 1 | . 1 . Indirectly . | . . . Trap Hack Attempts . | . . . Triggered . | . . . Disarmed . | . . . Reprogrammed . | . . . Reused . | . . . Traps Extracted . | . . . Installed . | . . . Triggered . | . . . Machines | -11 -10 -10 ---------- Run | Yrd Mat Sub Machines Disabled . | . . . Max in Single Turn . | . . . Machines Repaired . | . . . Machines Dismantled . | . . . Machines Sabotaged . | . . . Overloaded Fab Kills . | . . . Hacking | -11 -10 -10 --------- Run | Yrd Mat Sub Machines Accessed 5 | . 4 1 Terminals 4 | . 4 . Fabricators . | . . . Repair Stations . | . . . Recycling Units . | . . . Scanalyzers . | . . . Garrison Access . | . . . Total Hacks 16 | . 15 1 Successful 8 | . 7 1 Failed 7 | . 7 . Catastrophic 2 | . 2 . Database Lockouts 1 | . 1 . Manual 9 | . 9 . Terminals 15 | . 15 . Fabricators . | . . . Repair Stations . | . . . Recycling Units . | . . . Scanalyzers . | . . . Garrison Access . | . . . Terminal Hacks 7 | . 6 1 Record 1 | . . 1 Robot Analysis 2 | . 2 . Prototype ID Bank 1 | . 1 . Terminal Index 1 | . 1 . Locate Traps 1 | . 1 . Hauler Manifests 1 | . 1 . Fabricator Hacks . | . . . Repair Station Hacks . | . . . Recycling Unit Hacks . | . . . Scanalyzer . | . . . Garrison Access Hacks . | . . . Unauthorized Hacks 1 | . 1 . Terminals 1 | . 1 . Botnet 1 | . 1 . Fabricators . | . . . Repair Stations . | . . . Recycling Units . | . . . Scanalyzers . | . . . Garrison Access . | . . . Data Cores Recovered . | . . . Used . | . . . Hacking Detections 4 | . 4 . Full Trace Events 1 | . 1 . Feedback Events . | . . . Feedback Blocked . | . . . Robot Schematics Acquired . | . . . Robots Built . | . . . Authchips . | . . . Time . | . . . Total Robot Build Rating . | . . . Part Schematics Acquired . | . . . Parts Built . | . . . Authchips . | . . . Time . | . . . Total Part Build Rating . | . . . Parts Repaired . | . . . Time . | . . . Parts Recycled . | . . . Recycled Matter . | . . . Retrieved Matter . | . . . Retrieved Components . | . . . Parts Scanalyzed . | . . . Part Schematics Acquired . | . . . Parts Damaged . | . . . Bothacking | -11 -10 -10 ------------ Run | Yrd Mat Sub Used RIF Installer . | . . . Robots Hacked . | . . . Non-combat . | . . . Combat . | . . . Robot Hacks Applied . | . . . Relay Couplers Released . | . . . Fabnet Peak Effective % . | . . . Robots Rewired . | . . . Allies Hacked . | . . . Hacks Repelled . | . . . Allies | -11 -10 -10 -------- Run | Yrd Mat Sub Total Allies . | . . . Largest Group . | . . . Highest-Rated Group . | . . . Highest-Rated Ally . | . . . Total Orders . | . . . Ally Attacks . | . . . Total Damage . | . . . Kills . | . . . Allies Corrupted . | . . . Allies Melted . | . . . Intel | -11 -10 -10 ------- Run | Yrd Mat Sub Robot Analysis Total 2 | . 2 . Derelict Logs Recovered 1 | . . 1 Drone Launches . | . . . Drone Recoveries . | . . . Exploration | -11 -10 -10 ------------- Run | Yrd Mat Sub Turns Passed 2709 | 145 740 1824 Spaces Moved 1495 | 89 436 970 Core 12 | 12 . . Treads 526 | . . 526 Legs 110 | 77 33 . Wheels 847 | . 403 444 Hover . | . . . Flight . | . . . Fastest Speed 50 | 50 110 119 Average Speed 147 | 110 129 158 Slowest Speed 340 | 120 170 340 Overloaded Moves . | . . . Propulsion Burnouts . | . . . Robots Hopped . | . . . Cave-ins Triggered . | . . . Exploration Rate (%) 39 | 5 69 45 Regions Visited 2 Branch Regions 1 Pre-discovered Areas . | . . . Known Exits Taken . | . . . Unknown Exits Taken 2 | 1 1 . Scrap Searched 6 | . . 6 Spaces Dug . | . . . Terrain Destroyed 2 | . . 2 Melee . | . . . Projectile 2 | . . 2 AOE . | . . . Terrain Rammed . | . . . Walls Destroyed . | . . . Machines Disabled . | . . . Actions | -11 -10 -10 --------- Run | Yrd Mat Sub Total 1838 | 112 562 1164 Wait 139 | . 81 58 Move 1493 | 88 435 970 Hop . | . . . Pick Up 29 | 8 11 10 Fast Attach 17 | 6 4 7 Attach 3 | . . 3 Detach 3 | . . 3 Swap 21 | . 4 17 Drop 34 | . 4 30 Fire 90 | 10 23 57 Melee . | . . . Ram . | . . . Kick . | . . . Crush . | . . . Escape Stasis . | . . . Rewire . | . . . Trap . | . . . Miscellaneous 9 | . . 9 Route ------- -11/Scrapyard -10/Materials (discovered 4 exits: [*Mat] / [*Min x2] / *Sub) -10/Subcaves (discovered 2 exits: [*Mat] / Rec) History --------- Turn | Location | Event 7 | -11/Scrapyard | Discovered new exit (range 14) 146 | -11/Scrapyard | Entered Materials 308 | -10/Materials | Build established: Mutant 317 | -10/Materials | Central database locked down 418 | -10/Materials | Discovered new exit (range 9) 516 | -10/Materials | Discovered new exit (range 11) 735 | -10/Materials | Discovered new exit (range 16) 877 | -10/Materials | Discovered new exit (range 6) 886 | -10/Materials | Entered Subcaves 1331 | -10/Subcaves | Build established: Scavenger-Mutant 1386 | -10/Subcaves | Visited Clippyterm 1461 | -10/Subcaves | Shifting Twisted Machinery released Mak. Laser 1462 | -10/Subcaves | Shifting Twisted Machinery released Mak. Light Armor Plating 1486 | -10/Subcaves | Core integrity fell below 50% 1722 | -10/Subcaves | A swath of the cavern ceiling suddenly collapsed 1752 | -10/Subcaves | Discovered new exit (range 15) 1837 | -10/Subcaves | Identified exit to Recycling 1850 | -10/Subcaves | Build established: Derelict-Mutant 2256 | -10/Subcaves | Core integrity fell below 20% 2570 | -10/Subcaves | Build established: Subdweller-Mutant 2691 | -10/Subcaves | Ambushed by Subdweller buried in earth 2691 | -10/Subcaves | Ambushed by Subdweller buried in earth 2710 | -10/Subcaves | Destroyed by LN-XBE(R) with Subdweller Beam Cannon Last Messages --------------- 02286_ Acquired Sub. Beam Cannon. 02288_ Acquired 10 matter. 02289_ Acquired 5 matter. 02290_ Acquired 4 matter. 02294_ Y0-VIF(O) collects matter. 02323_ WA-EJQ(u) tweaks Twisted Machinery. 02513_ Scrap Shield Fragment affixed to Scrap Shield (+48). 02519_ Acquired 26 matter. 02522_ Acquired 2 matter. 02680_ Acquired 38 matter. 02689_ RJ-X43(R): "LEAVESUB!" 02692_ 4A-52P(R): "ARGHSUB!" 02692_ LN-XBE(R): "THANKSYOU!" 02693_ RJ-X43(R) destroyed. 02696_ 4A-52P(R) suffers critical hit (Destroy). 02699_ Scrap Shield destroyed. 02702_ Critical hit (Meltdown: +290). 02703_ The unstable cave ceiling collapses. 02708_ 4A-52P(R) destroyed. Map ----- +----------------------------------------------------+ | #????????????????????????????????????????????????? | | ##???????????????????????????????????????????????? | | ##??????????????????????????????????????????????? | | #??????????????????????????????????????????????? | | "##?????????????????????????????????????????????? | | """#?????????????????????????????????????????????? | | "###?????????????????????????????????????????????? | | """#?????????????????????????????????????????????? | | ###?????????????????????????????????????????????? | | ""#??????????????????????????????????????????????? | | "#"#?????????????????????????????????????????????? | | ""##?????????????????????????????????????????????? | | #"#??????????????????????????????????????????????? | | ""##?????????????????????????????????????????????? | | ##"##????????????????????????????????????????????? | | #"#"#????????????????????????????????????????????? | | #"""#????????????????????????????????????????????? | | "# ##????????????????????????????????????????????? | | ##"#?????????????????????????????????????????????? | | #"###??????????????????????###???????????????????? | | ##"##?????###????????###### ##??????????????????? | | ### ####### #????????# # ;###????????????????? | | #""""## #???????## ##???????????????? | | ### ###???????# ; % #???????????????? | | #"""" ##?????????# R !& #???????????????? | | """" ####???????# @ % #???????????????? | | """" ###?????# ; #???????????????? | | "" ##?####; ;; #???????????????? | | " ## ### # ;## #???????????????? | | "" ### !##?? #??????????????? | | """ ###### ##%#????##??????????????? | | ### ###### # ## ########*=#???????????????????? | | ### ####### ????? % ??????????????????? | | """ #?????# ??? ?????????????????? | | " ## ##?????# ## #?# ???????????????? | | ####??????# ##??#?# ??????????????? | | ### ##???????? #?????# ?????????????? | | # ##??????? ??????#### ????????????? | | #??????? ?????????? [%= ??????????? | | #??????? #?????????? ## #?????????? | | % ##???????#??????????? #?? #??????????? | | # #???????????????????? #???#??????????? | | # # ### ????????????????? #??????????????? | | # # ????????????????? ??????????????? | | # # #??????????????????? ?????????????????? | | # #??????????????????????????????????????? | | ##??????????????????????????????????????? | | ##???????????????????????????????????????? | | #####????????????????????????????????????????? | | ##???????????????????????????????????????????? | +----------------------------------------------------+ Best States ------------- Heat Dissipation 35 Energy Generation 10 Energy Capacity 250 Matter Stores 300 Matter Capacity 300 Sight Range 16 Terrain Scan Density 10 Armor Coverage 800 Evasion (%) 55 Recoil Reduction 2 Item Schematics ----------------- None Robot Schematics ------------------ None Fabricated ------------ Nothing Alien Tech Used ----------------- None Achievements -------------- None Challenges ------------ None Game ------ Seed PortableTacticalBarrier Manual? 0 Play Time 00:18:06 Cumulative 92.4 hours Start 2024.04.13 @ 09:47:21 End 2024.04.13 @ 10:04:20 Sessions 1 Manual Loads 0 Difficulty Rogue Special Mode None Game No. 80 Rogue 80 Adventurer 0 Explorer 0 Win Type - Total 2 Types 1/0/1/0/0/0/0/0/0 Lore% 44 Gallery% 58 Achievement% 48 Wizard Run 0 Options --------- Layout 2 ASCII 0 Keyboard 0 Movement Mouse Keybinds 0 Fullscreen 2 Font 32/SmallcapsGlow Map View 50x44 Zoom Use 0% Tactical HUD 1 Map Filters NONE Filters NONE Steam 1 RUN: fed77070-e6f8-4fdc-89a2-adf39a11e6de